bitfinex/quotes_ETHUSD_20210701
["timestamp","ask_amount","ask_price","bid_price","bid_amount"]
[1625170996396,11.33521,2109.8,2108.7,0.02198289]
[1625170996498,0.02464828,2109.7,2108.7,0.02198289]
[1625170996846,2.63050318,2109.7,2108.7,0.02198289]
[1625170996946,17.63050318,2109.7,2108.7,0.02198289]
[1625170997116,0.04614658,2109.5,2108.7,0.02198289]
[1625170997422,7.11062,2109.2,2108.7,0.02198289]
[1625170997523,11.92082,2109.2,2108.7,0.02198289]
[1625170997622,16.93082,2109.2,2108.7,0.02198289]
[1625170997722,0.12,2109.1,2108.7,0.02198289]
[1625170998420,7.11172,2108.9,2108.7,0.02198289]
[1625170998517,12.12172,2108.9,2108.7,0.02198289]
[1625170998618,9.31495866,2108.9,2108.7,0.02198289]
[1625170998918,8.69,2108.8,2108.7,0.02198289]
[1625170999019,13.7,2108.8,2108.7,0.02198289]
[1625170999123,5.05,2108.8,2108.7,0.02198289]
[1625170999351,0.04,2108.8,2108.7,0.02198289]
[1625170999439,10.0716,2109.7,2108.7,0.02198289]
[1625170999588,7.10921,2109.6,2108.7,0.02198289]
[1625171000640,10.2442,2109.8,2108.7,0.02198289]
[1625171001493,20.5336,2110.2,2108.7,0.02198289]
[1625171001654,20.5336,2110.2,2108.8,0.07441515]
[1625171001753,9.9977,2110.2,2109.2,4.0]
[1625171001838,11.84718,2111.0,2109.3,3.5663]
[1625171001945,11.84718,2111.0,2109.4,0.06191853]
[1625171002137,11.84718,2111.0,2109.4,0.99800965]
[1625171002328,21.2655,2111.2,2109.4,0.99800965]
[1625171002629,21.2655,2111.2,2109.7,4.0]
[1625171002827,21.2655,2111.2,2109.8,0.01480646]
[1625171003025,21.2655,2111.2,2109.8,4.0534]
[1625171003122,10.7963,2111.2,2109.8,4.06084626]
[1625171003222,10.7963,2111.2,2109.8,9.07084626]
[1625171003325,11.84534,2111.4,2109.8,13.53220626]
[1625171003424,3.55246,2111.3,2109.8,4.06084626]
[1625171003676,3.55246,2111.3,2109.8,4.0534]
[1625171003911,18.55246,2111.3,2109.8,4.0534]
[1625171004158,22.1050164,2111.3,2109.8,4.0534]
[1625171004362,7.10512,2110.4,2109.8,4.0534]
[1625171004561,12.11512,2110.4,2109.8,4.0534]
[1625171006366,7.10512,2110.4,2109.8,4.0534]
[1625171006715,5.01,2110.7,2109.8,4.0534]
[1625171006817,0.02413482,2110.9,2109.8,9.0634]
[1625171007014,0.02413482,2110.9,2109.8,17.07194206]
[1625171007114,0.02413482,2110.9,2109.8,17.08123682]
[1625171007218,0.02413482,2110.9,2109.9,3.7]
[1625171007313,0.02413482,2110.9,2110.0,7.10265]
[1625171007523,0.02413482,2110.9,2110.0,12.11265]
[1625171007612,0.02413482,2110.9,2110.0,7.10265]
[1625171007714,0.02413482,2110.9,2110.0,9.01]
[1625171008668,7.12793482,2110.9,2110.0,5.01]
[1625171008866,7.12793482,2110.9,2109.9,3.7]
[1625171008867,7.12793482,2110.9,2109.9,8.71]
[1625171008965,7.12793482,2110.9,2109.9,11.7]
[1625171009065,7.12793482,2110.9,2109.9,16.71]
[1625171009171,7.1038,2110.9,2109.9,16.71]
[1625171009266,7.1038,2110.9,2109.9,13.01]
[1625171009370,11.84534,2111.4,2109.9,13.01]
[1625171009527,16.85534,2111.4,2109.9,13.01]
[1625171009667,16.85534,2111.4,2109.9,17.01]
[1625171009870,7.10292,2111.1,2109.9,24.11289]
[1625171010269,7.10292,2111.1,2110.0,0.06]
[1625171010468,7.10292,2111.1,2109.9,24.11289]
[1625171011560,12.11292,2111.1,2109.9,9.01]
[1625171011664,12.11292,2111.1,2109.9,5.01]
[1625171011861,5.01,2111.1,2109.6,23.8964]
[1625171011965,5.01,2111.1,2109.6,5.01]
[1625171012063,5.01,2111.1,2109.5,4.0]
[1625171012064,3.55262,2111.4,2109.5,9.01]
[1625171012163,3.55262,2111.4,2109.5,4.0]
[1625171012164,0.1668341,2111.3,2109.5,4.0]
[1625171012261,0.1668341,2111.3,2109.5,9.01]
[1625171013160,3.55247,2111.2,2109.5,9.01]
[1625171013257,0.08022747,2111.1,2109.5,9.01]
[1625171013407,7.10527,2110.5,2109.5,9.01]
[1625171013812,7.10527,2110.5,2109.5,4.0]
[1625171014260,12.11527,2110.5,2109.5,4.0]
[1625171014661,12.11527,2110.5,2109.4,14.91299256]
[1625171014861,12.11527,2110.5,2109.4,13.97454]
[1625171014862,7.10527,2110.5,2109.4,13.97454]
[1625171014969,9.47369,2111.0,2109.5,15.0]
[1625171015067,0.02994682,2111.2,2109.5,29.31130966]
[1625171015180,11.84534,2111.4,2109.6,0.19755504]
[1625171015273,11.84534,2111.4,2109.6,0.29755504]
[1625171015625,11.84534,2111.4,2110.1,4.0]
[1625171015730,11.84534,2111.4,2110.1,7.8729]
[1625171015825,11.84534,2111.4,2110.1,13.83792129]
[1625171015928,7.10226,2111.3,2110.3,7.10205]
[1625171016026,7.10226,2111.3,2110.3,12.11205]
[1625171016676,7.10226,2111.3,2110.3,16.11205]
[1625171017710,7.10226,2111.3,2110.3,12.11205]
[1625171018714,7.10226,2111.3,2110.4,4.0]
[1625171018918,27.25539,2111.5,2110.4,16.11149]
[1625171019018,17.30569,2111.5,2110.4,16.11149]
[1625171019122,17.04982,2111.9,2110.4,16.17149]
[1625171019219,17.04982,2111.9,2110.4,16.19314225]
[1625171019370,15.9261,2111.8,2110.5,5.27559417]
[1625171019467,10.9161,2111.8,2110.5,5.26620339]
[1625171019569,10.9161,2111.8,2110.6,0.01326268]
[1625171019707,0.2,2111.9,2110.9,4.0]
[1625171019903,0.2,2111.9,2110.9,9.01834487]
[1625171020052,0.2,2111.9,2110.9,10.17854487]
[1625171020554,0.2,2111.9,2110.9,10.1702]
[1625171020658,0.2,2111.9,2110.9,6.1702]
[1625171020804,0.2,2111.9,2110.9,1.1602]
[1625171020958,0.2,2111.9,2110.9,6.1702]
[1625171021204,0.2,2111.9,2110.9,1.1602]
[1625171021304,0.2,2111.9,2110.9,6.1702]
[1625171021509,0.2,2111.9,2110.9,1.1602]
[1625171021604,0.2,2111.9,2110.9,6.1702]
[1625171021806,0.2,2111.9,2110.9,1.1602]
[1625171021980,0.2,2111.9,2110.9,6.1702]
[1625171022249,0.2,2111.9,2110.9,1.1602]
[1625171022349,0.2,2111.9,2110.9,6.1702]
[1625171022450,7.30021,2111.9,2110.9,1.1602]
[1625171022550,12.31021,2111.9,2110.9,1.1602]
[1625171023904,7.30021,2111.9,2110.9,1.1602]
[1625171025611,12.31021,2111.9,2110.6,12.0911]
[1625171025707,12.31021,2111.9,2110.6,3.0811]
[1625171025708,7.30021,2111.9,2110.6,3.0811]
[1625171025808,0.19458295,2111.8,2110.4,10.8251]
[1625171025962,0.18569306,2111.8,2110.4,5.01]
[1625171026059,5.21,2111.9,2110.3,15.3097]
[1625171026254,0.03359899,2111.8,2110.3,15.3097]
[1625171026649,5.21,2111.9,2110.3,15.3097]
[1625171026808,7.10257,2111.2,2110.3,5.01]
[1625171027048,7.10257,2111.2,2110.1,24.94004129]
[1625171027153,7.10257,2111.2,2110.4,0.1]
[1625171027400,7.10257,2111.2,2110.1,24.94004129]
[1625171027904,7.10183,2111.5,2110.2,7.10173]
[1625171028101,7.10183,2111.5,2110.2,12.11173]
[1625171028604,7.10183,2111.5,2110.2,56.78510559]
[1625171028747,7.10183,2111.5,2110.4,4.0]
[1625171028947,7.10183,2111.5,2110.4,17.01]
[1625171029751,7.10183,2111.5,2110.5,4.0]
[1625171029953,7.10183,2111.5,2110.5,8.96]
[1625171031622,7.10183,2111.5,2110.5,5.01]
[1625171031724,7.10183,2111.5,2110.4,13.80352]
[1625171031925,12.11183,2111.5,2110.4,13.80352]
[1625171032617,12.11183,2111.5,2110.4,17.80352]
[1625171033283,12.11183,2111.5,2110.4,9.01]
[1625171033671,12.11183,2111.5,2110.4,5.01]
[1625171033773,12.11183,2111.5,2110.3,14.4791]
[1625171036300,7.10183,2111.5,2110.3,14.4791]
[1625171036550,7.10183,2111.5,2110.3,17.12680851]
[1625171036653,7.10183,2111.5,2110.5,4.0]
[1625171036755,11.004,2111.8,2110.5,4.0]
[1625171036855,11.004,2111.8,2110.6,0.2]
[1625171036952,11.004,2111.8,2110.6,3.9144]
[1625171037050,11.004,2111.8,2110.6,11.60430851]
[1625171037151,11.004,2111.8,2110.6,11.40430851]
[1625171037506,10.67735593,2111.8,2110.6,11.40430851]
[1625171037654,10.67735593,2111.8,2111.2,4.0]
[1625171037771,0.2,2111.9,2111.2,8.6863]
[1625171037964,0.2,2111.9,2111.2,13.6963]
[1625171038467,7.10052,2111.7,2111.2,13.6963]
[1625171039318,0.2,2111.9,2111.2,13.6963]
[1625171039521,7.29964,2111.9,2111.2,13.6963]
[1625171039616,7.29964,2111.9,2111.2,16.37620851]
[1625171039720,7.29964,2111.9,2111.5,4.0]
[1625171040626,7.29964,2111.9,2111.3,4.0]
[1625171042032,7.29964,2111.9,2111.3,9.01]
[1625171042367,7.29964,2111.9,2111.4,4.0]
[1625171043665,7.29964,2111.9,2111.3,9.01]
[1625171043767,7.29964,2111.9,2111.3,4.0]
[1625171043871,7.29964,2111.9,2111.3,9.01]
[1625171044615,0.2,2111.9,2111.3,9.01]
[1625171044713,0.2,2111.9,2111.5,4.0]
[1625171045766,0.2,2111.9,2111.3,9.01]
[1625171045865,0.2,2111.9,2111.3,4.0]
[1625171046014,0.2,2111.9,2111.4,0.08]
[1625171046215,0.2,2111.9,2111.3,9.01]
[1625171046419,7.29964,2111.9,2111.3,9.01]
[1625171047703,7.29964,2111.9,2111.3,5.01]
[1625171047807,7.29964,2111.9,2111.2,4.6863]
[1625171047955,7.29964,2111.9,2111.0,4.0]
[1625171048052,12.30964,2111.9,2111.0,4.0]
[1625171048551,5.21,2111.9,2111.0,4.0]
[1625171048654,5.21,2111.9,2110.6,38.8324]
[1625171048756,0.2,2111.9,2110.6,17.7246]
[1625171048858,7.29964,2111.9,2110.8,8.03737726]
[1625171049152,12.30964,2111.9,2110.9,0.08]
[1625171049860,12.30964,2111.9,2110.8,9.79320726]
[1625171053332,7.29964,2111.9,2110.8,17.79320726]
[1625171053428,7.29964,2111.9,2110.8,9.79320726]
[1625171053541,7.29964,2111.9,2110.9,0.08]
[1625171053945,7.29964,2111.9,2111.1,7.09995]
[1625171054042,7.29964,2111.9,2111.1,15.34145]
[1625171054542,7.29964,2111.9,2111.3,4.0]
[1625171056775,7.29964,2111.9,2111.1,8.2415]
[1625171056974,0.08,2111.8,2111.1,8.2415]
[1625171057223,0.2,2111.9,2111.1,8.2415]
[1625171058469,7.10119,2111.5,2111.1,8.2415]
[1625171061422,9.46826,2111.7,2111.1,8.2415]
[1625171061621,3.8,2111.9,2111.1,8.2415]
[1625171061820,3.8,2111.9,2111.2,0.1]
[1625171062021,3.8,2111.9,2111.1,8.2415]
[1625171062563,10.89982,2111.9,2111.1,15.34132]
[1625171062764,10.89982,2111.9,2111.1,19.34132]
[1625171063068,10.89982,2111.9,2111.1,27.34132]
[1625171063166,10.89982,2111.9,2111.2,0.08]
[1625171063738,10.89982,2111.9,2111.1,14.92140851]
[1625171064792,10.89982,2111.9,2111.1,10.92140851]
[1625171064944,10.89982,2111.9,2111.1,8.2415]
[1625171065878,10.89982,2111.9,2111.0,1.0]
[1625171065978,0.04,2111.8,2111.0,1.0]
[1625171066477,8.81,2111.9,2111.0,1.0]
[1625171066830,7.10217,2111.4,2111.0,1.0]
[1625171076192,0.21357575,2111.2,2110.3,5.18863854]
[1625171076293,0.21357575,2111.2,2110.3,2.67990851]
[1625171076495,30.2,2111.1,2109.5,10.113]
[1625171076596,0.24877707,2111.0,2109.6,2.50873003]
[1625171076781,15.24877707,2111.0,2109.5,10.113]
[1625171076849,0.33568889,2110.7,2109.4,9.38324184]
[1625171077040,0.33568889,2110.7,2108.9,27.9175]
[1625171077143,7.10709,2109.8,2108.9,17.6251]
[1625171077241,0.07482977,2109.7,2108.9,6.87]
[1625171077678,0.07482977,2109.7,2108.7,4.0]
[1625171077773,0.18,2109.6,2108.6,6.20098289]
[1625171077873,0.07542003,2109.5,2108.6,0.02198289]
[1625171078074,0.18,2109.4,2108.6,0.02198289]
[1625171078174,7.11033,2109.1,2108.6,0.02198289]
[1625171078274,10.19413,2109.1,2108.6,0.02198289]
[1625171078872,10.19413,2109.1,2108.6,8.289e-05]
[1625171079039,15.20413,2109.1,2108.1,0.2]
[1625171079143,12.50985341,2109.1,2108.1,0.2]
[1625171079236,7.1112,2108.6,2108.1,0.2]
[1625171080638,9.4816,2108.8,2108.1,0.2]
[1625171080741,9.48656992,2109.2,2108.1,0.2]
[1625171080742,9.48044,2109.2,2108.1,0.2]
[1625171081284,9.48044,2109.2,2108.2,2.50873003]
[1625171081486,9.48044,2109.2,2108.2,7.51873003]
[1625171081740,5.01,2109.5,2108.2,7.51873003]
[1625171081839,7.10925,2109.3,2108.2,8.48001945]
[1625171081937,7.10925,2109.3,2108.2,16.48001945]
[1625171082090,47.3054,2109.7,2108.2,16.48001945]
[1625171082543,42.2954,2109.7,2108.2,18.5466703]
[1625171082737,42.2954,2109.7,2108.6,4.0]
[1625171082888,20.3192,2109.7,2108.6,14.6497]
[1625171083086,20.3192,2109.7,2108.6,27.6597]
[1625171083189,11.84906,2110.2,2108.7,2.50873003]
[1625171083293,11.84906,2110.2,2108.8,0.18170651]
[1625171083546,11.84906,2110.2,2108.8,1.13143644]
[1625171083796,11.84906,2110.2,2108.9,2.50873003]
[1625171083894,11.84906,2110.2,2109.0,0.10356003]
[1625171083994,10.0261,2110.4,2109.0,0.10356003]
[1625171084245,10.0261,2110.4,2109.1,2.66562058]
[1625171084349,10.0261,2110.4,2109.1,8.48955476]
[1625171084443,10.0261,2110.4,2109.2,0.10193273]
[1625171084796,10.0261,2110.4,2109.3,2.66562058]
[1625171084797,7.10546,2110.2,2109.3,2.66562058]
[1625171085242,7.10546,2110.2,2109.3,7.67562058]
[1625171085494,7.10546,2110.2,2109.3,15.67562058]
[1625171088887,7.10546,2110.2,2109.3,17.96785476]
[1625171088988,7.10546,2110.2,2109.4,0.08]
[1625171089086,7.10546,2110.2,2109.4,1.02424506]
[1625171089435,19.4994,2110.4,2109.5,4.95508308]
[1625171089535,10.0261,2110.4,2109.6,0.07384839]
[1625171089634,10.0261,2110.4,2109.6,3.372]
[1625171089736,10.3026,2110.6,2109.6,8.48377872]
[1625171089836,7.10455,2110.3,2109.6,8.48377872]
[1625171089938,7.10455,2110.3,2109.6,8.39200744]
[1625171090038,7.10455,2110.3,2109.6,8.382]
[1625171090977,7.10455,2110.3,2109.6,16.382]
[1625171094545,7.10455,2110.3,2109.6,17.5556]
[1625171095933,9.47329,2110.4,2109.6,17.5556]
[1625171096040,11.84357,2111.1,2109.6,20.22185123]
[1625171096186,11.84357,2111.1,2109.7,0.40493278]
[1625171096283,11.84357,2111.1,2109.7,0.42130919]
[1625171096439,11.84357,2111.1,2110.1,7.10197]
[1625171096541,7.10169,2111.2,2110.1,5.01]
[1625171096685,7.10169,2111.2,2110.1,9.8269293]
[1625171096836,7.10169,2111.2,2110.5,4.0]
[1625171097081,7.10169,2111.2,2110.5,9.01]
[1625171097178,7.10169,2111.2,2110.5,4.0]
[1625171097279,7.10169,2111.2,2110.5,9.01]
[1625171097630,7.10169,2111.2,2110.5,11.67625123]
[1625171097781,7.10169,2111.2,2110.7,4.0]
[1625171097878,7.10169,2111.2,2110.7,7.0717]
[1625171097978,7.10169,2111.2,2110.7,13.2507]
[1625171099736,7.10169,2111.2,2110.7,9.2507]
[1625171100738,7.10169,2111.2,2110.7,13.2507]
[1625171101142,7.10169,2111.2,2110.7,7.0717]
[1625171101241,12.11169,2111.2,2110.7,4.0]
[1625171101746,12.11169,2111.2,2109.8,15.8016]
[1625171101846,17.12389,2111.2,2109.9,9.21]
[1625171101998,17.12389,2111.2,2109.9,5.01]
[1625171102195,17.12389,2111.2,2109.8,15.8016]
[1625171102297,3.5520806,2111.1,2109.8,15.8016]
[1625171102398,7.10432,2110.5,2109.8,5.01]
[1625171102498,11.42422,2110.5,2109.6,2.66625123]
[1625171102702,16.43422,2110.5,2109.6,2.66625123]
[1625171102798,16.43422,2110.5,2109.4,2.57329376]
[1625171102950,16.43422,2110.5,2109.2,10.0023]
[1625171103397,16.44211423,2110.5,2109.2,10.0023]
[1625171103501,19.99511423,2110.5,2109.2,10.0023]
[1625171103599,12.89079423,2110.5,2109.0,10.87]
[1625171103833,0.1,2110.4,2109.0,6.87]
[1625171103935,0.11606667,2110.4,2109.0,6.87]
[1625171104135,0.01606667,2110.4,2109.0,6.87]
[1625171105290,9.47541,2110.0,2109.0,14.97604]
[1625171105392,0.01606667,2110.4,2109.0,14.97604]
[1625171105543,8.563,2110.5,2109.0,23.38346623]
[1625171105742,8.563,2110.5,2109.3,4.0]
[1625171105940,8.563,2110.5,2109.3,9.01]
[1625171106190,8.563,2110.5,2109.3,15.189]
[1625171106443,9.47421,2110.3,2109.3,15.189]
[1625171106542,14.48421,2110.3,2109.3,10.179]
[1625171106744,14.48421,2110.3,2109.3,6.179]
[1625171106845,9.47421,2110.3,2109.3,11.189]
[1625171107094,14.48421,2110.3,2109.3,6.179]
[1625171107198,14.48421,2110.3,2109.3,11.189]
[1625171107692,14.48421,2110.3,2109.3,6.179]
[1625171107894,7.10629,2109.9,2109.3,6.179]
[1625171109445,0.06605593,2109.6,2109.3,6.179]
[1625171109544,0.13211186,2109.6,2109.3,6.179]
[1625171109642,0.13211186,2109.6,2109.4,0.14]
[1625171109843,9.47243,2110.6,2109.5,30.2]
[1625171109947,9.47243,2110.6,2109.5,38.2]
[1625171110044,9.47243,2110.6,2109.6,0.2]
[1625171110248,9.47243,2110.6,2109.5,35.21]
[1625171110646,14.48243,2110.6,2109.5,35.21]
[1625171110943,14.48243,2110.6,2109.5,5.01]
[1625171111045,14.48243,2110.6,2109.4,0.93410005]
[1625171111248,7.10491,2110.3,2109.5,7.10449]
[1625171111446,7.10491,2110.3,2109.5,12.11449]
[1625171111853,7.10491,2110.3,2109.7,4.0]
[1625171112839,7.10491,2110.3,2109.6,4.0]
[1625171113740,7.10491,2110.3,2109.5,4.0]
[1625171114044,7.10491,2110.3,2109.5,9.01]
[1625171114801,7.10491,2110.3,2109.5,5.01]
[1625171115070,7.10491,2110.3,2109.3,6.179]
[1625171115169,12.11491,2110.3,2109.3,6.179]
[1625171115471,12.11491,2110.3,2109.3,11.189]
[1625171116270,15.6681769,2110.3,2109.3,11.189]
[1625171116369,8.5632669,2110.3,2109.3,11.189]
[1625171116473,7.10593,2109.8,2109.3,11.189]
[1625171118447,5.01,2110.3,2109.3,11.189]
[1625171118549,18.03657,2110.4,2109.3,6.179]
[1625171118654,14.48354,2110.4,2109.3,11.189]
[1625171118749,5.01,2110.4,2109.3,11.189]
[1625171118850,5.01,2110.4,2109.3,6.179]
[1625171118952,32.3887,2110.8,2109.3,6.179]
[1625171119053,3.55309,2110.5,2109.3,6.179]
[1625171119252,8.56309,2110.5,2109.3,6.179]
[1625171119944,0.04,2110.4,2109.3,6.179]
[1625171120245,3.55303,2110.4,2109.3,6.179]
[1625171120393,8.25163,2110.4,2109.3,6.179]
[1625171120546,7.1061,2109.9,2109.3,6.179]
[1625171122593,12.1162454,2110.4,2109.3,6.179]
[1625171124460,7.10624,2109.8,2109.3,6.179]
[1625171128155,12.11624,2109.8,2109.0,1.0]
[1625171128251,7.10624,2109.8,2109.0,1.0]
[1625171128354,12.11624,2109.8,2109.0,1.0]
[1625171128452,0.14,2109.7,2109.0,1.0]
[1625171128801,3.55467,2109.5,2109.0,1.0]
[1625171128902,30.2,2109.4,2108.1,45.2889]
[1625171129003,30.2,2109.4,2108.1,4.2]
[1625171129165,7.10996,2108.8,2108.1,4.2]
[1625171129250,10.50146,2108.8,2108.1,4.2]
[1625171129655,15.51146,2108.8,2108.1,4.2]
[1625171129855,0.18,2108.7,2108.1,0.2]
[1625171130457,0.18,2108.7,2108.1,0.0001]
[1625171130655,0.18,2108.6,2108.1,0.0001]
[1625171131456,7.11314,2108.4,2108.1,0.0001]
[1625171131551,12.12314,2108.4,2108.1,0.0001]
[1625171131853,0.18,2108.3,2108.1,0.0001]
[1625171131953,4.4525,2108.3,2108.1,0.0001]
[1625171132053,9.4625,2108.3,2108.1,0.0001]
[1625171132206,9.2825,2108.3,2108.1,0.0001]
[1625171132305,4.2725,2108.3,2108.1,0.0001]
[1625171132404,1.46434926,2108.3,2108.1,0.0001]
[1625171134601,8.57598926,2108.3,2108.1,0.0001]
[1625171137839,8.57598926,2108.3,2107.6,9.79803795]
[1625171138785,8.57598926,2108.3,2107.6,10.75305333]
[1625171139537,8.57598926,2108.3,2107.6,5.96501538]
[1625171139798,8.57598926,2108.3,2107.6,0.95501538]
[1625171140853,1.46434926,2108.3,2107.6,0.95501538]
[1625171140955,1.46434926,2108.3,2107.6,3.36606103]
[1625171141058,22.09444,2109.2,2107.7,0.14]
[1625171141156,22.09444,2109.2,2107.7,0.44997691]
[1625171141253,22.09444,2109.2,2107.8,0.15]
[1625171141353,22.09444,2109.2,2107.9,0.21824099]
[1625171141454,11.85434,2109.2,2107.9,0.22861427]
[1625171141706,11.85434,2109.2,2108.1,4.0]
[1625171141807,11.85434,2109.2,2108.2,0.14800749]
[1625171142061,11.85434,2109.2,2108.2,1.09677444]
[1625171142146,7.10927,2109.0,2108.2,1.09677444]
[1625171142248,7.10927,2109.0,2108.2,0.94876695]
[1625171142548,11.85434,2109.2,2108.2,0.94876695]
[1625171142645,10.8345,2109.4,2108.3,0.07900965]
[1625171143450,15.8445,2109.4,2108.3,0.07900965]
[1625171143850,15.8445,2109.4,2108.2,0.94876695]
[1625171143949,15.8445,2109.4,2108.2,5.95876695]
[1625171144054,7.10942,2109.0,2108.2,8.05750695]
[1625171144151,7.10942,2109.0,2108.2,5.95876695]
[1625171144397,7.10942,2109.0,2108.2,0.94876695]
[1625171145045,7.10942,2109.0,2108.2,3.58795427]
[1625171145145,7.10942,2109.0,2108.2,15.76678427]
[1625171145298,25.32277,2109.4,2108.2,15.76678427]
[1625171145395,25.32277,2109.4,2108.2,20.43728427]
[1625171145545,25.32277,2109.4,2108.2,22.97948217]
[1625171145698,14.48827,2109.4,2108.3,0.07748534]
[1625171145799,9.47827,2109.4,2108.4,4.0]
[1625171146045,9.47827,2109.4,2108.4,9.01]
[1625171146551,7.10911,2109.0,2108.4,9.01]
[1625171146753,7.10911,2109.0,2108.4,4.0]
[1625171147000,7.10911,2109.0,2108.4,9.01]
[1625171147102,9.47827,2109.4,2108.4,9.01]
[1625171147302,9.47827,2109.4,2108.5,0.2]
[1625171147402,10.765,2109.5,2108.5,0.2]
[1625171147507,10.8533,2109.6,2108.5,0.2]
[1625171147605,10.8533,2109.6,2108.5,7.38359567]
[1625171147757,10.8533,2109.6,2108.9,4.0]
[1625171147953,10.8533,2109.6,2108.9,8.5420788]
[1625171148052,11.8512,2109.7,2108.9,13.5520788]
[1625171148152,11.8512,2109.7,2108.9,16.19126612]
[1625171148460,1.0,2110.1,2108.9,24.19126612]
[1625171148558,1.0,2110.1,2109.0,0.12502578]
[1625171148657,1.0,2110.1,2109.0,0.20502578]
[1625171148822,7.10599,2110.0,2109.1,7.1059]
[1625171149010,7.10599,2110.0,2109.1,14.75508732]
[1625171149114,7.10599,2110.0,2109.1,9.74508732]
[1625171149261,7.10599,2110.0,2109.1,14.75508732]
[1625171149761,7.10599,2110.0,2109.3,4.0]
[1625171150569,12.11599,2110.0,2109.3,4.0]
[1625171150668,30.2,2109.9,2108.3,0.12927547]
[1625171150767,3.55447,2109.8,2108.3,0.12927547]
[1625171150873,3.55447,2109.8,2108.2,13.06552427]
[1625171150874,3.55447,2109.8,2108.2,0.94876695]
[1625171150876,3.62231617,2109.8,2108.2,0.94876695]
[1625171150967,3.62231617,2109.8,2107.9,6.87]
[1625171150968,15.0,2109.7,2107.9,6.87]
[1625171151116,0.04026347,2109.6,2107.9,6.87]
[1625171151216,1.13016173,2109.6,2107.9,6.87]
[1625171151413,7.11117,2108.8,2107.9,13.97972]
[1625171151571,11.85206,2109.5,2107.9,13.97972]
[1625171151662,11.85206,2109.5,2108.0,5.34798647]
[1625171151813,16.86206,2109.5,2108.0,5.30798647]
[1625171152014,16.86206,2109.5,2108.0,10.31798647]
[1625171152113,11.85206,2109.5,2108.0,13.30798647]
[1625171152210,11.85206,2109.5,2108.0,18.31798647]
[1625171152563,11.85206,2109.5,2108.1,0.08]
[1625171152664,7.1086,2109.2,2108.3,7.10841]
[1625171152843,7.1086,2109.2,2108.3,8.05523469]
[1625171152937,7.1086,2109.2,2108.3,13.06523469]
[1625171153040,7.1086,2109.2,2108.3,21.06523469]
[1625171153750,7.1086,2109.2,2108.6,4.0]
[1625171153951,7.1086,2109.2,2108.6,9.01]
[1625171154054,11.85206,2109.5,2108.6,9.01]
[1625171154206,9.9674,2109.7,2108.6,11.64918732]
[1625171154404,9.9674,2109.7,2108.7,0.04]
[1625171154509,20.7501,2109.8,2108.7,2.70879915]
[1625171154612,32.39226,2110.2,2108.7,2.70879915]
[1625171154755,10.0601,2110.2,2109.5,4.0]
[1625171154857,11.1632,2110.9,2109.5,9.0009]
[1625171154954,21.1943,2110.9,2109.5,14.0109]
[1625171155563,11.84563,2110.7,2109.5,22.0109]
[1625171155666,11.84563,2110.7,2109.5,27.31888647]
[1625171155819,21.1943,2110.9,2110.0,4.0]
[1625171155913,21.1943,2110.9,2110.0,8.445]
[1625171156364,21.1943,2110.9,2110.0,13.455]
[1625171157467,7.10381,2110.7,2110.0,13.455]
[1625171158976,7.10381,2110.7,2110.1,17.45]
[1625171159074,7.10381,2110.7,2110.1,23.40933438]
[1625171159226,7.10381,2110.7,2110.1,23.52933438]
[1625171159328,10.2311,2110.9,2110.1,23.40933438]
[1625171159576,17.33431,2110.9,2110.1,23.40933438]
[1625171159728,7.30321,2110.9,2110.1,31.40933438]
[1625171159828,7.30321,2110.9,2110.5,8.5083]
[1625171162204,0.2,2110.9,2110.5,8.5083]
[1625171162808,0.2,2110.9,2110.6,4.0]
[1625171163459,7.30321,2110.9,2110.6,4.0]
[1625171164602,7.30321,2110.9,2110.5,8.5083]
[1625171165908,0.2,2110.9,2110.5,13.5183]
[1625171166006,0.2,2110.9,2110.5,21.5183]
[1625171166103,0.2,2110.9,2110.6,0.12]
[1625171166705,0.2,2110.9,2110.6,2.75918732]
[1625171166856,0.2,2110.9,2110.8,4.0]
[1625171167056,0.2,2110.9,2110.8,9.01]
[1625171167653,0.2,2110.9,2110.8,4.0]
[1625171167878,0.2,2110.9,2110.7,4.0]
[1625171168077,0.2,2110.9,2110.7,9.01]
[1625171169857,0.2,2110.9,2110.8,4.0]
[1625171170859,0.2,2110.9,2110.3,4.0]
[1625171171953,0.2,2110.9,2110.3,9.01]
[1625171172103,0.2,2110.9,2110.3,17.01]
[1625171172852,0.2,2110.9,2110.4,4.0]
[1625171173052,0.2,2110.9,2110.4,9.01]
[1625171175815,0.2,2110.9,2110.1,0.94933438]
[1625171175967,4.5715,2110.9,2109.7,10.6534]
[1625171176517,4.5715,2110.9,2109.5,14.1927]
[1625171176818,4.5715,2110.9,2109.6,4.0]
[1625171176919,16.68508,2110.9,2109.6,4.0]
[1625171177168,16.695273,2110.9,2109.6,4.0]
[1625171177769,16.695273,2110.9,2109.2,20.578]
[1625171178104,16.695273,2110.9,2109.2,33.588]
[1625171178259,0.08,2110.8,2109.2,33.588]
[1625171178456,7.10609,2110.2,2109.2,33.588]
[1625171178554,7.10609,2110.2,2109.2,13.01]
[1625171178905,7.10609,2110.2,2109.2,18.31798647]
[1625171180458,7.10609,2110.2,2109.2,25.42360647]